Cogmind - Beta 13 *** ADVENTURER MODE // 2024.03.31 @ 22:16:43 Player: The Grungler Result: Destroyed by Y-45 Defender with Heavy Assault Rifle Performance ------------- Evolutions (2) 1000 Regions Visited (3) 600 Robots Destroyed (30) 150 Value Destroyed (773) 773 Prototype IDs (0) 0 Alien Tech Used (0) 0 Bonus (0) 0 TOTAL SCORE: 2523 Bonus ------- None Cogmind --------- Core Integrity 0/550 Matter 263/300 Energy 121/125 System Corruption 0% Temperature Cool (11) Movement Walking (120) Location -8/Materials Parts ------- > --- POWER (2) -------- Light Ion Engine > --- PROPULSION (2) --- Aluminum Leg Aluminum Leg > --- UTILITY (3) ------ System Shield > --- WEAPON (4) ------- (None) > --- INVENTORY (5) ---- (None) Peak State ------------ > --- POWER ------------ Light Ion Engine Light Deuterium Engine > --- PROPULSION ------- Gravmag System Gravmag System > --- UTILITY ---------- Small Storage Unit Power Shielding Light Armor Plating > --- WEAPON ----------- Assault Rifle Heavy Assault Rifle Minigun Minigun > --- INVENTORY -------- Aluminum Leg Aluminum Leg Gravmag System Gravmag System Light EM Pulse Cannon Assault Rifle Autogun [Rating: 25] Favorites ----------- Power Light Ion Engine Engine Light Ion Engine Power Core Light Nuclear Core Propulsion Gravmag System Treads Light Treads Leg Aluminum Leg Wheel Wheel Hover Unit Gravmag System Flight Unit Surge Thruster Utility Small Storage Unit Device Structural Scanner Storage Small Storage Unit Processor Targeting Computer Hackware System Shield Protection Power Shielding Weapon Assault Rifle Energy Cannon Light EM Pulse Cannon Ballistic Gun Assault Rifle Ballistic Cannon Light Cannon Launcher Grenade Launcher Build | -11 -10 -9 -8 ------- Run | Yrd Mat Mat Mat Slots Evolved 4 | . . 2 2 Power 1 | . . 1 . Propulsion . | . . . . Utility 1 | . . 1 . Weapon 2 | . . . 2 Parts Attached 47 | 5 6 10 26 Power 6 | 1 . 1 4 Engine 5 | 1 . 1 3 Core 1 | . . . 1 Reactor . | . . . . Propulsion 14 | 2 . 4 8 Treads 2 | . . 2 . Leg 4 | . . 2 2 Wheel 2 | 2 . . . Hover 5 | . . . 5 Flight 1 | . . . 1 Utility 7 | . 4 1 2 Device 2 | . 1 1 . Storage 1 | . 1 . . Processor 1 | . 1 . . Hackware 1 | . . . 1 Protection 2 | . 1 . 1 Artifact . | . . . . Weapon 20 | 2 2 4 12 Energy Gun . | . . . . Energy Cannon 2 | . . 1 1 Ballistic Gun 13 | 2 1 2 8 Ballistic Cannon 2 | . . . 2 Launcher 3 | . 1 1 1 Special Weapon . | . . . . Impact Weapon . | . . . . Slashing Weapon . | . . . . Piercing Weapon . | . . . . Special Melee Weapon . | . . . . Unidentified Prototypes . | . . . . Parts Lost 17 | . . 1 16 Power 3 | . . . 3 Propulsion 4 | . . 1 3 Utility 2 | . . . 2 Weapon 8 | . . . 8 Highest Loss Streak 10 | . . 1 10 To Critical Strikes . | . . . . Average Slot Usage (%) 84 | . 93 93 77 Engine 13 | . 14 22 10 Treads 2 | . . 11 . Leg 2 | . . 5 1 Wheel 7 | . 28 4 . Hover 7 | . . . 13 Device 3 | . 3 5 2 Storage 9 | . 10 11 8 Processor 1 | . 6 . . Protection 8 | . 1 11 11 Energy Cannon 2 | . . 4 3 Ballistic Gun 19 | . 22 8 22 Launcher 3 | . 5 8 . Naked Turns . | . . . . Heaviest Build 28 | 6 14 20 28 Greatest Support 40 | 20 20 40 40 Greatest Overweight (x) 2 | . . 1 2 Average Overweight (x) . | . . . . Largest Inventory Capacity 8 | 5 8 8 8 Average Capacity 7 | 5 7 8 7 Most Carried 8 | 2 7 8 8 Average Carried 5 | . 4 5 5 Final Capacity 8 | 5 8 8 5 Final Carried 7 | 1 6 7 . Class Distribution -------------------- 54% | Mutant 28% | Tank 16% | Scavenger-Tank Dominant Class ---------------- Mutant | -10/Materials Mutant | -9/Materials Tank | -8/Materials Resources | -11 -10 -9 -8 ----------- Run | Yrd Mat Mat Mat Matter Collected 1026 | 258 107 86 575 Remotely . | . . . . Salvage Created 712 | 51 124 165 372 Parts 62 | 1 12 14 35 Haulers Intercepted . | . . . . Recyclers Shooed 3 | . 1 . 2 Parts Field Recycled . | . . . . Retrieved Matter . | . . . . Parts Self-Destructed . | . . . . Prevented . | . . . . Kills | -11 -10 -9 -8 ------- Run | Yrd Mat Mat Mat Combat Hostiles Destroyed 23 | 1 5 7 10 Guns 8 | 1 3 2 2 Cannons 3 | . . 1 2 AOE 12 | . 2 4 6 Classes Destroyed 8 | 2 2 2 2 Worker 3 | 1 . . 2 Builder 1 | . . . 1 Tunneler 1 | . . . 1 Watcher 2 | . 1 . 1 Swarmer 9 | . 3 2 4 Grunt 7 | 1 2 2 2 Duelist 1 | . . 1 . Sentry 6 | . . 2 4 Best Kill Streak 9 | 2 4 6 9 Combat Bots Only 7 | 1 3 6 7 Max Kills in Single Turn 6 | 1 2 2 6 Gunslinging 1 | . 1 . . Exploded 4 | . 1 1 4 Melee . | . . . . Uniques/NPCs Destroyed . | . . . . Combat | -11 -10 -9 -8 -------- Run | Yrd Mat Mat Mat Hostile Shots Fired 273 | 1 6 45 221 Missed 80 | . 3 19 58 Damage Taken 2363 | 8 23 327 2005 Core 582 | . . 26 556 Absorbed by Shields . | . . . . Redirected to Shielding 50 | . . 13 37 Ignored by Resistances 671 | 3 8 98 562 Regen/Repaired (Parts) 12 | . . . 12 Core Remaining (%) 97 | 100 100 93 . Volleys Fired 43 | 2 6 14 21 Largest 4 | 2 2 2 4 Hottest 124 | 40 50 86 124 Shots Fired 114 | 4 12 28 70 Gun 78 | 4 9 15 50 Cannon 14 | . . 2 12 Launcher 22 | . 3 11 8 Special . | . . . . Kinetic 82 | 4 9 15 54 Thermal . | . . . . Explosive 22 | . 3 11 8 Electromagnetic 10 | . . 2 8 Robot Hit Streak 26 | 3 7 26 11 Robot Miss Streak 2 | . 1 1 2 Penetration Max . | . . . . Secondary Targets 2 | . 1 . 1 Max Gunslinging Chain 1 | . 1 . 1 Shots Hit Robots 83 | 3 10 25 45 Core Hits 56 | 3 10 16 27 Critical Kills . | . . . . Critical Parts Destroyed . | . . . . Critical Strikes . | . . . . Melee Attacks . | . . . . Impact . | . . . . Slashing . | . . . . Piercing . | . . . . Sneak Attacks . | . . . . Combat Hostiles . | . . . . Follow-up Attacks . | . . . . Damage Inflicted 2493 | 31 290 743 1429 Guns 808 | 31 100 162 515 Cannons 215 | . . 36 179 Explosions 1442 | . 190 545 707 Melee . | . . . . Ramming 28 | . . . 28 Kinetic 844 | 31 100 162 551 Thermal . | . . . . Explosive 1442 | . 190 545 707 Electromagnetic 179 | . . 36 143 Impact . | . . . . Slashing . | . . . . Piercing . | . . . . Highest Corruption . | . . . . Average Corruption . | . . . . Corruption Purged . | . . . . Corruption Blocked . | . . . . Overload Shots . | . . . . Overflow Damage 34 | . . . 34 Projectiles . | . . . . Explosions 34 | . . . 34 Melee . | . . . . Knockbacks 1 | . . . 1 Impact . | . . . . Kinetic 1 | . . . 1 Secondary . | . . . . Self-Inflicted Damage 183 | . . 58 125 Shots 8 | . . 3 5 Rammed 7 | . . . 7 Targets Rammed 7 | . . . 7 Kicked . | . . . . Crushed . | . . . . Highest Temperature 361 | 6 5 60 361 Average Temperature 77 | 6 3 14 99 Received Heat Transfer 1359 | 6 9 174 1170 Effects 5 | . . . 5 Shutdowns 1 | . . . 1 Energy Bleed 1 | . . . 1 Interference 2 | . . . 2 Matter Decay 1 | . . . 1 Siege Activations . | . . . . Robots Corrupted . | . . . . Combat Hostiles . | . . . . Parts Fried . | . . . . Impact Corruptions . | . . . . Robots Melted . | . . . . Combat Hostiles . | . . . . Parts Melted . | . . . . Heat Transferred . | . . . . Parts Sabotaged . | . . . . Parts Stolen . | . . . . Parts Stripped . | . . . . Power Chain Reactions . | . . . . Alert | -11 -10 -9 -8 ------- Run | Yrd Mat Mat Mat Peak Influence 326 | 25 159 326 243 Initial 117 | . 13 57 117 Average 158 | 6 77 233 179 Maximum Alert Level 1 | . . 1 1 Low Security (%) 68 | 100 100 28 68 Level 1 31 | . . 71 31 Level 2 . | . . . . Level 3 . | . . . . Level 4 . | . . . . Level 5 . | . . . . High Security . | . . . . Max Security . | . . . . Squads Dispatched 4 | . . 1 3 Investigation . | . . . . Extermination . | . . . . Reinforcement 1 | . . 1 . Assault . | . . . . Garrison 3 | . . . 3 Intercept . | . . . . Searches Triggered . | . . . . Construction Impeded 1 | . . 1 . Haulers Reinforced . | . . . . Active Scanning Responses . | . . . . Cargo Convoy Interrupts . | . . . . Stealth | -11 -10 -9 -8 --------- Run | Yrd Mat Mat Mat Distress Signals 1 | . 1 . . Communications Jammed . | . . . . Distress Signals . | . . . . Times Spotted 40 | 1 7 12 20 Peak Tracking Total 7 | 1 5 7 7 Tactical Retreats 1 | . . . 1 Traps | -11 -10 -9 -8 ------- Run | Yrd Mat Mat Mat Traps Triggered 1 | . . . 1 Indirectly . | . . . . Trap Hack Attempts . | . . . . Triggered . | . . . . Disarmed . | . . . . Reprogrammed . | . . . . Reused . | . . . . Traps Extracted . | . . . . Installed . | . . . . Triggered . | . . . . Machines | -11 -10 -9 -8 ---------- Run | Yrd Mat Mat Mat Machines Disabled 2 | . 2 . . Max in Single Turn 2 | . 2 . . Machines Repaired . | . . . . Machines Dismantled . | . . . . Machines Sabotaged . | . . . . Overloaded Fab Kills . | . . . . Hacking | -11 -10 -9 -8 --------- Run | Yrd Mat Mat Mat Machines Accessed 3 | . 1 . 2 Terminals 1 | . . . 1 Fabricators . | . . . . Repair Stations 1 | . . . 1 Recycling Units 1 | . 1 . . Scanalyzers . | . . . . Garrison Access . | . . . . Total Hacks 4 | . 1 . 3 Successful 3 | . 1 . 2 Failed 1 | . . . 1 Catastrophic . | . . . . Database Lockouts . | . . . . Manual . | . . . . Terminals 1 | . . . 1 Fabricators . | . . . . Repair Stations 2 | . . . 2 Recycling Units 1 | . 1 . . Scanalyzers . | . . . . Garrison Access . | . . . . Terminal Hacks . | . . . . Fabricator Hacks . | . . . . Repair Station Hacks 2 | . . . 2 Scan Component 1 | . . . 1 Repair 1 | . . . 1 Recycling Unit Hacks 1 | . 1 . . Report Inventory 1 | . 1 . . Scanalyzer . | . . . . Garrison Access Hacks . | . . . . Unauthorized Hacks . | . . . . Terminals . | . . . . Fabricators . | . . . . Repair Stations . | . . . . Recycling Units . | . . . . Scanalyzers . | . . . . Garrison Access . | . . . . Data Cores Recovered . | . . . . Used . | . . . . Hacking Detections . | . . . . Full Trace Events . | . . . . Feedback Events . | . . . . Feedback Blocked . | . . . . Robot Schematics Acquired . | . . . . Robots Built . | . . . . Authchips . | . . . . Time . | . . . . Total Robot Build Rating . | . . . . Part Schematics Acquired . | . . . . Parts Built . | . . . . Authchips . | . . . . Time . | . . . . Total Part Build Rating . | . . . . Parts Repaired 1 | . . . 1 Time 44 | . . . 44 Parts Recycled . | . . . . Recycled Matter . | . . . . Retrieved Matter . | . . . . Retrieved Components . | . . . . Parts Scanalyzed . | . . . . Part Schematics Acquired . | . . . . Parts Damaged . | . . . . Bothacking | -11 -10 -9 -8 ------------ Run | Yrd Mat Mat Mat Used RIF Installer . | . . . . Robots Hacked . | . . . . Non-combat . | . . . . Combat . | . . . . Robot Hacks Applied . | . . . . Relay Couplers Released . | . . . . Fabnet Peak Effective % . | . . . . Robots Rewired . | . . . . Allies Hacked . | . . . . Hacks Repelled . | . . . . Allies | -11 -10 -9 -8 -------- Run | Yrd Mat Mat Mat Total Allies . | . . . . Largest Group . | . . . . Highest-Rated Group . | . . . . Highest-Rated Ally . | . . . . Total Orders . | . . . . Ally Attacks . | . . . . Total Damage . | . . . . Kills . | . . . . Allies Corrupted . | . . . . Allies Melted . | . . . . Intel | -11 -10 -9 -8 ------- Run | Yrd Mat Mat Mat Robot Analysis Total . | . . . . Derelict Logs Recovered . | . . . . Drone Launches . | . . . . Drone Recoveries . | . . . . Exploration | -11 -10 -9 -8 ------------- Run | Yrd Mat Mat Mat Turns Passed 962 | 62 198 210 492 Spaces Moved 732 | 62 204 115 351 Core 29 | 16 . . 13 Treads 63 | . . 58 5 Legs 45 | . . 19 26 Wheels 288 | 46 204 38 . Hover 287 | . . . 287 Flight 20 | . . . 20 Fastest Speed 50 | 50 80 80 56 Average Speed 99 | 72 80 127 106 Slowest Speed 180 | 80 80 160 180 Overloaded Moves . | . . . . Propulsion Burnouts . | . . . . Robots Hopped . | . . . . Cave-ins Triggered . | . . . . Exploration Rate (%) 21 | 9 43 13 21 Regions Visited 3 Branch Regions . Pre-discovered Areas . | . . . . Known Exits Taken . | . . . . Unknown Exits Taken 3 | 1 1 1 . Scrap Searched . | . . . . Spaces Dug . | . . . . Terrain Destroyed 91 | . 1 61 29 Melee . | . . . . Projectile . | . . . . AOE 91 | . 1 61 29 Terrain Rammed . | . . . . Walls Destroyed . | . . . . Machines Disabled . | . . . . Actions | -11 -10 -9 -8 --------- Run | Yrd Mat Mat Mat Total 890 | 75 228 154 433 Wait 1 | 1 . . . Move 729 | 61 203 114 351 Hop . | . . . . Pick Up 36 | 6 9 8 13 Fast Attach 2 | . . . 2 Attach 44 | 5 6 10 23 Detach 11 | . 3 4 4 Swap 1 | . . . 1 Drop 16 | . 1 4 11 Fire 43 | 2 6 14 21 Melee . | . . . . Ram 7 | . . . 7 Kick . | . . . . Crush . | . . . . Escape Stasis . | . . . . Rewire . | . . . . Trap . | . . . . Miscellaneous . | . . . . Route ------- -11/Scrapyard -10/Materials -9/Materials -8/Materials History --------- Turn | Location | Event 2 | -11/Scrapyard | Met Revision 17 46 | -11/Scrapyard | Discovered new exit (range 8) 63 | -11/Scrapyard | Entered Materials 255 | -10/Materials | Discovered new exit (range 6) 261 | -10/Materials | Entered another Materials area 261 | -9/Materials | Evolved 2 slots: Power x1, Utility x1 341 | -9/Materials | Build established: Mutant 408 | -9/Materials | Discovered new exit (range 16) 471 | -9/Materials | Entered another Materials area 471 | -8/Materials | Evolved 2 slots: Weapon x2 690 | -8/Materials | Repaired Gravmag System 709 | -8/Materials | Garrison activated, responded to threat 797 | -8/Materials | Core integrity fell below 50% 822 | -8/Materials | Lost 6 parts (1p2n3w) 844 | -8/Materials | Core integrity fell below 20% 912 | -8/Materials | Destroyed 7 combat bots 963 | -8/Materials | Destroyed by Y-45 Defender with Heavy Assault Rifle Last Messages --------------- K-01 Serf collects debris. The unstable cave ceiling collapses. Minigun destroyed. Rocket Launcher destroyed. K-01 Serf collects debris. Acquired 9 matter. Y-45 Defender misfires. Acquired Lgt. Ion Engine. K-01 Serf collects debris. Acquired 2 matter. K-01 Serf collects debris. Sml. Storage Unit destroyed. K-01 Serf collects debris. Acquired System Shield. [Achievement: First Step to Greatness] Important note for Steam players: Cogmind player global achievement rates displayed by Steam are all significantly underreported, in some cases by a huge margin, due to how they are calculated by Valve. Map ----- +----------------------------------------------------+ | ?????????????????????????????????????????????????? | | ?????????????????????????????????????????????????? | | ?????????????????????????????????????????????????? | | ?????????????????????????????????????????????????? | | ?????????????????????????????????????????????????? | | ?????????????????????????????????????????????????? | | ?????????????????????????????????????????????????? | | ?????????????????????????????????????????????????? | | ?????????????????????????????????????????????????? | | ?????????????????????????????????????????????????? | | ?????????????????????????????????????????????????? | | ?????????????????????????????????????????????????? | | ???????????????? ???????????????????????????????? | | ???????????????? #??????????????????????????????? | | ???????????????" #??????????????????????????????? | | ???????????????" #??????????????????????????????? | | ?????????? ??? #??????????????????????????????? | | ?????????? ?? #??????????????????????????????? | | #####????? ?? #??????????????????????????????? | | #?????""T??" #??????????????????????????????? | | " ####### #### #??????????????????????????????? | | """ ## ## #????????????????? ?????????? | | """ ## "" !! ## #######+####### ?????????? | | """ ## "G # ????????? | | "" ## "" # u Y ????????? | | """ # @ k ????????? | | "" # *[# #######/####### ????????? | | "" ### ## #### #????????????????????? | | " [# * ## #????????????????????? | | = !#! ! / #????????????????????? | | !["! ### #????????????????????? | | [#= # # # #?# #????????????????????? | | ##### ###### ### #?# #????????????????????? | | ???# =###########?########????????????????????? | | ???# # """ #?????????????????????????????? | | ???# + "T" #?????????????????????????????? | | ???# ! # #?????????????????????????????? | | ???# #| | #?????????????????????????????? | | ???### #############?????????????????????????????? | | ?????# #########?????????????????????????????????? | | ?????# ## #?????????????????????????????????? | | ?????# ## #?????????????????????????????????? | | ?????# ##""" #?????????????????????????????????? | | ?????# ##"R #?????##########??????????????????? | | ?????# ##""" ####### = ! = #??????????????????? | | [????# ## ####### #??????????????????? | | ??# ######+## # #??????????????????? | | # # #??????????????????? | | """ + / #??????????????????? | | """ #= ] ! # ! #??????????????????? | +----------------------------------------------------+ Best States ------------- Heat Dissipation 31 Energy Generation 19 Energy Capacity 165 Matter Stores 300 Matter Capacity 300 Sight Range 16 Terrain Scan Density 10 Armor Coverage 150 Resistance: KI 20 Resistance: TH 20 Resistance: EX 20 Resistance: EM 20 Resistance: I 20 Resistance: S 20 Resistance: P 20 Power Shielding 33 Evasion (%) 55 Targeting Accuracy 5 Recoil Reduction 2 Offensive Hacking 10 Defensive Hacking 10 Item Schematics ----------------- None Robot Schematics ------------------ None Fabricated ------------ Nothing Alien Tech Used ----------------- None Achievements -------------- First Step to Greatness Oops Part-time Mechanic Troublemaker Universal Adapter Challenges ------------ None Game ------ Seed BottomlessSignalTearclaws Manual? 0 Play Time 00:19:23 Cumulative 0.2 hours Start 2024.03.31 @ 21:59:20 End 2024.03.31 @ 22:16:43 Sessions 1 Manual Loads 0 Difficulty Adventurer Special Mode None Game No. 3 Rogue 0 Adventurer 3 Explorer 0 Win Type - Total 0 Types 0/0/0/0/0/0/0/0/0 Lore% 0 Gallery% 5 Achievement% 5 Wizard Run 0 Options --------- Layout 1 ASCII 0 Keyboard 0 Movement Mouse Keybinds 0 Fullscreen 1 Font 24/Smallcaps Map View 50x35 Zoom Use 0% Tactical HUD 0 Map Filters NONE Filters NONE Steam 1 RUN: 392b29b6-c2f1-4783-a60f-0fa27ed0318f